fUSD/lending_fUSD_20250521
["ID","MTS","AMOUNT","RATE_DAILY","PERIOD"]
[361807255,1747822244333,-420.0,0.00032876,5]
[361807256,1747822244343,-420.0,0.00032876,5]
[361807257,1747822244353,-420.0,0.00032876,5]
[361807258,1747822244364,-420.0,0.00032876,5]
[361807259,1747822244375,-738.2,0.00032876,5]
[361807260,1747822244386,-2272.79,0.00032876,5]
[361807261,1747822244395,-420.0,0.00032876,5]
[361807262,1747822244405,-210.40691214,0.00032876,5]
[361807263,1747822244415,-420.0,0.00032876,5]
[361807264,1747822244425,-420.0,0.00032876,5]
[361807265,1747822244436,-151.0,0.00032876,7]
[361807266,1747822244445,-151.950067,0.00032876,7]
[361807267,1747822244456,-98.94264229,0.00032876,5]
[361807268,1747822245241,-1206.13735771,0.00032876,5]
[361807269,1747822245251,-420.0,0.00032876,5]
[361807270,1747822245261,-420.0,0.00032876,5]
[361807271,1747822245270,-849.59,0.00032876,5]
[361807272,1747822245280,-420.0,0.00032876,5]
[361807273,1747822245290,-664.22639013,0.00032876,5]
[361807274,1747822245311,-1234.03360987,0.00032876,5]
[361807275,1747822245321,-420.0,0.00032876,5]
[361807277,1747822245331,-15.17171184,0.00032876,5]
[361807278,1747822245343,-438.66828816,0.00032876,5]
[361807279,1747822245352,-59.57128099,0.00032876,5]
[361807280,1747822245365,-360.42871901,0.00032876,5]
[361807281,1747822245375,-169.97128099,0.00032876,5]
[361807284,1747822245453,-250.02871901,0.00032876,5]
[361807285,1747822245464,-215.50129749,0.00032876,5]
[361807286,1747822245534,-204.49870251,0.00032876,5]
[361807287,1747822245544,-420.0,0.00032876,5]
[361807288,1747822245555,-1096.34,0.00032876,5]
[361807289,1747822245565,-420.0,0.00032876,5]
[361807290,1747822245574,-499.56,0.00032876,5]
[361807291,1747822245584,-420.0,0.00032876,5]
[361807292,1747822245593,-420.0,0.00032876,5]
[361807293,1747822245602,-1128.65,0.00032876,5]
[361807294,1747822245612,-425.58,0.00032876,5]
[361807295,1747822245621,-455.44,0.00032876,5]
[361807296,1747822245630,-158.22880808,0.00032876,5]
[361807297,1747822245640,-902.27,0.00032876,5]
[361807298,1747822245650,-457.39,0.00032876,5]
[361807299,1747822245660,-420.0,0.00032876,5]
[361807300,1747822245673,-420.0,0.00032876,5]
[361807301,1747822245683,-420.0,0.00032876,5]
[361807302,1747822245693,-808.43,0.00032876,5]
[361807303,1747822245703,-884.24,0.00032876,5]
[361807304,1747822245712,-891.3,0.00032876,5]
[361807305,1747822245721,-420.0,0.00032876,5]
[361807306,1747822245731,-420.0,0.00032876,5]
[361807307,1747822245741,-807.24,0.00032876,5]
[361807308,1747822245751,-512.84,0.00032876,5]
[361807309,1747822245760,-562.09,0.00032876,5]
[361807310,1747822245769,-420.0,0.00032876,5]
[361807311,1747822245779,-691.22,0.00032876,5]
[361807312,1747822245789,-1514.23,0.00032876,5]
[361807313,1747822245798,-761.19,0.00032876,5]
[361807314,1747822245807,-420.0,0.00032876,5]
[361807315,1747822245817,-342.1367752,0.00032876,5]
[361807316,1747822245826,-522.76,0.00032876,5]
[361807317,1747822245836,-278.10735886,0.00032876,5]
[361807318,1747822245845,-420.0,0.00032876,5]
[361807319,1747822245855,-867.49,0.00032876,5]
[361807320,1747822245865,-420.0,0.00032876,5]
[361807321,1747822245874,-709.91,0.00032876,5]
[361807322,1747822245884,-420.0,0.00032876,5]
[361807323,1747822245894,-420.0,0.00032876,5]
[361807324,1747822245903,-867.95,0.00032876,5]
[361807325,1747822245913,-420.0,0.00032876,5]
[361807326,1747822245923,-420.0,0.00032876,5]
[361807327,1747822245932,-420.0,0.00032876,5]
[361807328,1747822245943,-420.0,0.00032876,5]
[361807329,1747822245954,-1263.78,0.00032876,5]
[361807330,1747822245963,-420.0,0.00032876,5]
[361807331,1747822245973,-420.0,0.00032876,5]
[361807332,1747822245983,-420.0,0.00032876,5]
[361807333,1747822245993,-151.0,0.00032876,7]
[361807334,1747822246003,-151.0,0.00032876,7]
[361807335,1747822246012,-420.0,0.00032876,5]
[361807336,1747822246026,-640.12,0.00032876,5]
[361807337,1747822246036,-420.0,0.00032876,5]
[361807338,1747822246046,-420.0,0.00032876,5]
[361807339,1747822246056,-784.64,0.00032876,5]
[361807340,1747822246066,-1230.22,0.00032876,5]
[361807341,1747822246076,-778.63,0.00032876,5]
[361807342,1747822246086,-2024.94,0.00032876,5]
[361807343,1747822246095,-881.9,0.00032876,5]
[361807344,1747822246105,-420.0,0.00032876,5]
[361807345,1747822246115,-420.0,0.00032876,5]
[361807346,1747822246125,-420.0,0.00032876,5]
[361807347,1747822246134,-420.0,0.00032876,5]
[361807348,1747822246144,-890.61,0.00032876,5]
[361807349,1747822246154,-420.0,0.00032876,5]
[361807350,1747822246163,-420.0,0.00032876,5]
[361807351,1747822246173,-420.0,0.00032876,5]
[361807352,1747822246183,-420.0,0.00032876,5]
[361807353,1747822246193,-420.0,0.00032876,5]
[361807354,1747822246202,-1509.82,0.00032876,5]
[361807355,1747822246212,-248.91414265,0.00032876,5]
[361807356,1747822246223,-420.0,0.00032876,5]
[361807357,1747822246233,-420.0,0.00032876,5]
[361807358,1747822246243,-206.11776996,0.00032876,5]
[361807359,1747822246254,-420.0,0.00032876,5]
[361807360,1747822246263,-420.0,0.00032876,5]
[361807361,1747822246272,-305.64575434,0.00032876,5]
[361807362,1747822246282,-420.0,0.00032876,5]
[361807363,1747822246292,-420.0,0.00032876,5]
[361807364,1747822246302,-420.0,0.00032876,5]
[361807365,1747822246312,-420.0,0.00032876,5]
[361807366,1747822246321,-617.91,0.00032876,5]
[361807367,1747822246330,-742.79,0.00032876,5]
[361807368,1747822246340,-420.0,0.00032876,5]
[361807369,1747822246350,-420.0,0.00032876,5]
[361807370,1747822246359,-420.0,0.00032876,5]
[361807371,1747822246371,-489.52,0.00032876,5]
[361807372,1747822246381,-437.28,0.00032876,5]
[361807373,1747822246391,-504.55,0.00032876,5]
[361807374,1747822246401,-420.0,0.00032876,5]
[361807375,1747822246411,-945.01,0.00032876,5]
[361807376,1747822246424,-420.0,0.00032876,5]
[361807377,1747822246433,-1286.19,0.00032876,5]
[361807378,1747822246443,-514.15,0.00032876,5]
[361807379,1747822246453,-420.0,0.00032876,5]
[361807380,1747822246463,-2030.81,0.00032876,5]
[361807381,1747822246473,-1092.87,0.00032876,5]
[361807382,1747822246484,-433.27,0.00032876,5]
[361807383,1747822246494,-420.0,0.00032876,5]
[361807384,1747822246503,-420.0,0.00032876,5]
[361807385,1747822246513,-420.0,0.00032876,5]
[361807386,1747822246523,-432.38,0.00032876,5]
[361807387,1747822246532,-420.0,0.00032876,5]
[361807388,1747822246542,-211.54466775,0.00032876,5]
[361807389,1747822246551,-420.0,0.00032876,5]
[361807390,1747822246561,-420.0,0.00032876,5]
[361807391,1747822246570,-1788.17,0.00032876,5]
[361807392,1747822246579,-420.0,0.00032876,5]
[361807393,1747822246589,-1171.51,0.00032876,5]
[361807394,1747822246599,-500.0,0.00032876,2]
[361807395,1747822246608,-500.0,0.00032876,2]
[361807396,1747822246618,-500.0,0.00032876,2]
[361807397,1747822246628,-500.0,0.00032876,2]
[361807398,1747822246637,-500.0,0.00032876,2]
[361807399,1747822246646,-500.0,0.00032876,2]
[361807400,1747822246656,-500.0,0.00032876,2]
[361807401,1747822246666,-439.16,0.00032876,5]
[361807402,1747822246675,-500.0,0.00032876,2]
[361807403,1747822246685,-500.0,0.00032876,2]
[361807404,1747822246694,-500.0,0.00032876,2]
[361807405,1747822246704,-505.37,0.00032876,5]
[361807406,1747822246713,-500.0,0.00032876,2]
[361807407,1747822246723,-500.0,0.00032876,2]
[361807408,1747822246732,-500.0,0.00032876,2]
[361807409,1747822246743,-420.0,0.00032876,5]
[361807410,1747822246753,-811.84,0.00032876,5]
[361807411,1747822246763,-420.0,0.00032876,5]
[361807412,1747822246773,-420.0,0.00032876,5]
[361807413,1747822246783,-3146.96,0.00032876,120]
[361807414,1747822246792,-420.0,0.00032876,5]
[361807415,1747822246801,-1540.22,0.00032876,5]
[361807416,1747822246811,-420.0,0.00032876,5]
[361807417,1747822246820,-420.0,0.00032876,5]
[361807418,1747822246831,-420.0,0.00032876,5]
[361807419,1747822246840,-420.0,0.00032876,5]
[361807420,1747822246849,-1478.79,0.00032876,5]
[361807421,1747822246858,-158.35798132,0.00032876,5]
[361807422,1747822246868,-420.0,0.00032876,5]
[361807423,1747822246878,-420.0,0.00032876,5]
[361807424,1747822246888,-420.0,0.00032876,5]
[361807425,1747822246898,-507.8,0.00032876,5]
[361807426,1747822246907,-420.0,0.00032876,5]
[361807427,1747822246917,-420.0,0.00032876,5]
[361807428,1747822246926,-420.0,0.00032876,5]
[361807429,1747822246936,-151.0,0.00032876,7]
[361807430,1747822246948,-420.0,0.00032876,5]
[361807431,1747822246958,-151.0,0.00032876,7]
[361807432,1747822246967,-151.0,0.00032876,7]
[361807433,1747822246976,-420.0,0.00032876,5]
[361807434,1747822246986,-151.0,0.00032876,7]
[361807435,1747822246996,-151.0,0.00032876,7]
[361807436,1747822247006,-420.0,0.00032876,5]
[361807437,1747822247018,-151.0,0.00032876,7]
[361807438,1747822247028,-420.0,0.00032876,5]
[361807439,1747822247037,-151.0,0.00032876,7]
[361807440,1747822247046,-151.0,0.00032876,7]
[361807441,1747822247056,-151.0,0.00032876,7]
[361807442,1747822247065,-151.0,0.00032876,7]
[361807443,1747822247074,-151.0,0.00032876,7]
[361807444,1747822247083,-420.0,0.00032876,5]
[361807445,1747822247093,-718.5,0.00032876,5]
[361807446,1747822247102,-151.0,0.00032876,7]
[361807447,1747822247113,-420.0,0.00032876,5]
[361807448,1747822247122,-151.0,0.00032876,7]
[361807449,1747822247131,-1321.91,0.00032876,5]
[361807450,1747822247140,-420.0,0.00032876,5]
[361807451,1747822247150,-420.0,0.00032876,5]
[361807452,1747822247160,-500.0,0.00032876,5]
[361807453,1747822247169,-420.0,0.00032876,5]
[361807454,1747822247179,-420.0,0.00032876,5]
[361807455,1747822247358,-2437.96,0.00032876,5]
[361807456,1747822247369,-530.02,0.00032876,5]
[361807457,1747822247379,-600.12,0.00032876,5]
[361807458,1747822247389,-420.0,0.00032876,5]
[361807459,1747822247399,-420.0,0.00032876,5]
[361807460,1747822247408,-480.05,0.00032876,5]
[361807461,1747822247418,-973.44,0.00032876,5]
[361807462,1747822247427,-868.87,0.00032876,5]
[361807463,1747822247437,-1507.63,0.00032876,5]
[361807464,1747822247447,-564.01,0.00032876,5]
[361807465,1747822247457,-437.11826181,0.00032876,5]
[361807466,1747822247467,-631.2,0.00032876,5]
[361807467,1747822247477,-420.0,0.00032876,5]
[361807468,1747822247486,-321.25137,0.00032876,7]
[361807469,1747822247496,-321.25137,0.00032876,7]
[361807470,1747822247506,-321.25137,0.00032876,7]
[361807471,1747822247517,-321.25137,0.00032876,7]
[361807472,1747822247527,-420.0,0.00032876,5]
[361807473,1747822247537,-420.0,0.00032876,5]
[361807474,1747822247547,-321.25137,0.00032876,7]
[361807475,1747822247558,-420.0,0.00032876,5]
[361807476,1747822247568,-321.25137,0.00032876,7]
[361807477,1747822247577,-420.0,0.00032876,5]
[361807478,1747822247588,-321.25137,0.00032876,7]
[361807479,1747822247597,-854.1,0.00032876,5]
[361807480,1747822247607,-420.0,0.00032876,5]
[361807481,1747822247618,-321.25137,0.00032876,7]
[361807482,1747822247628,-1073.92,0.00032876,5]
[361807483,1747822247637,-420.0,0.00032876,5]
[361807484,1747822247654,-321.25137,0.00032876,7]
[361807485,1747822247664,-420.0,0.00032876,5]
[361807486,1747822247673,-321.25137,0.00032876,7]
[361807487,1747822247683,-183.26596777,0.00032876,5]
[361807488,1747822247693,-321.25137,0.00032876,7]
[361807489,1747822247703,-321.25137,0.00032876,7]
[361807490,1747822247713,-460.94,0.00032876,5]
[361807491,1747822247723,-321.25137,0.00032876,7]
[361807492,1747822247732,-420.0,0.00032876,5]
[361807493,1747822247742,-321.25137,0.00032876,7]
[361807494,1747822247751,-1399.31,0.00032876,5]
[361807495,1747822247761,-714.96,0.00032876,5]
[361807496,1747822247770,-441.87695664,0.00032876,5]
[361807497,1747822247781,-420.0,0.00032876,5]
[361807498,1747822247791,-1007.54,0.00032876,5]
[361807499,1747822247800,-1110.16,0.00032876,5]
[361807500,1747822247810,-270.67611026,0.00032876,5]
[361807501,1747822247820,-736.8,0.00032876,5]
[361807502,1747822247829,-420.0,0.00032876,5]
[361807503,1747822247839,-420.0,0.00032876,5]
[361807504,1747822247849,-420.0,0.00032876,5]
[361807505,1747822247858,-420.0,0.00032876,5]
[361807506,1747822247868,-908.73,0.00032876,5]
[361807507,1747822247878,-420.0,0.00032876,5]
[361807508,1747822247887,-420.0,0.00032876,5]
[361807509,1747822247897,-400.92144874,0.00032876,5]
[361807510,1747822247906,-654.9,0.00032876,5]
[361807511,1747822247916,-420.0,0.00032876,5]
[361807512,1747822247926,-494.95,0.00032876,5]
[361807513,1747822247936,-151.0,0.00032876,7]
[361807514,1747822247949,-420.0,0.00032876,5]
[361807515,1747822247959,-459.76,0.00032876,5]
[361807516,1747822247968,-1203.16,0.00032876,5]
[361807517,1747822247978,-151.0,0.00032876,7]
[361807518,1747822247989,-1117.5,0.00032876,5]
[361807519,1747822247998,-151.0,0.00032876,7]
[361807520,1747822248008,-610.06,0.00032876,5]
[361807521,1747822248019,-420.0,0.00032876,5]
[361807522,1747822248028,-151.0,0.00032876,7]
[361807523,1747822248038,-523.27,0.00032876,5]
[361807524,1747822248047,-151.0,0.00032876,7]
[361807525,1747822248057,-151.0,0.00032876,7]
[361807526,1747822248067,-521.12519688,0.00032876,5]
[361807527,1747822248077,-225.91863,0.00032876,7]
[361807528,1747822248087,-500.87,0.00032876,5]
[361807529,1747822248097,-420.0,0.00032876,5]
[361807530,1747822248107,-1528.93,0.00032876,5]
[361807531,1747822248117,-420.0,0.00032876,5]
[361807532,1747822248128,-157.694696,0.00032876,7]
[361807533,1747822248137,-3827.29,0.00032876,5]
[361807534,1747822248147,-834.7,0.00032876,5]
[361807535,1747822248157,-2538.19,0.00032876,5]
[361807536,1747822248167,-248.32585188,0.00032876,5]
[361807537,1747822248989,-339.66414812,0.00032876,5]
[361807538,1747822248998,-900.07,0.00032876,5]
[361807539,1747822249009,-78.08271094,0.00032876,5]
[361807540,1747822249131,-341.91728906,0.00032876,5]
[361807541,1747822249143,-420.0,0.00032876,5]
[361807542,1747822249154,-54.26332506,0.00032876,5]
[361807543,1747822249175,-365.73667494,0.00032876,5]
[361807544,1747822249186,-1012.85,0.00032876,5]
[361807545,1747822249195,-1771.35,0.00032876,5]
[361807546,1747822249205,-420.0,0.00032876,5]
[361807547,1747822249215,-420.0,0.00032876,5]
[361807548,1747822249225,-420.0,0.00032876,5]
[361807549,1747822249235,-420.0,0.00032876,5]
[361807550,1747822249245,-420.0,0.00032876,5]
[361807551,1747822249255,-420.0,0.00032876,5]
[361807552,1747822249267,-420.0,0.00032876,5]
[361807553,1747822249278,-420.0,0.00032876,5]
[361807554,1747822249288,-420.0,0.00032876,5]
[361807555,1747822249298,-761.54,0.00032876,5]
[361807556,1747822249308,-420.0,0.00032876,5]
[361807557,1747822249318,-221.59379632,0.00032876,5]
[361807558,1747822249328,-420.0,0.00032876,5]
[361807559,1747822249338,-420.0,0.00032876,5]
[361807560,1747822249348,-1436.92952874,0.00032876,28]
[361807561,1747822249389,-63.07047126,0.00032876,28]
[361807562,1747822249399,-1500.0,0.00032876,28]
[361807563,1747822249409,-964.29419927,0.00032876,28]
[361807564,1747822249426,-535.70580073,0.00032876,28]
[361807565,1747822249436,-566.47630102,0.00032876,28]
[361807566,1747822249448,-385.51481198,0.00032876,28]
[361807567,1747822249458,-197.8351939,0.00032876,5]
[361807568,1747822529719,-5000000.0,0.00042912,30]
[361807569,1747822538116,-5000000.0,0.00042912,30]
[361807570,1747822544469,-5000000.0,0.00042912,30]
[361807571,1747822550883,-8000000.0,0.00042912,30]
[361807572,1747822554753,-8000000.0,0.00042912,30]
[361807573,1747822559338,-8000000.0,0.00042912,30]
[361807574,1747822564015,-8000000.0,0.00042912,30]
[361807575,1747822580616,-8000000.0,0.00042912,30]
[361807576,1747822585615,-8000000.0,0.00042912,30]
[361807577,1747822590475,-8000000.0,0.00042912,30]
[361807578,1747822599413,-18000000.0,0.00042912,30]
[361807579,1747822604374,-11000000.0,0.00042912,30]
[361807580,1747822604401,-50000.0,0.00042912,30]
[361807581,1747822604425,-1000.0,0.00042912,30]
[361807582,1747822604449,-518.73351729,0.00042912,30]
[361807583,1747822604473,-387.68866669,0.00042912,30]
[361807584,1747822604497,-169.20980657,0.00042912,30]
[361807585,1747822604521,-731.14308787,0.00042912,30]
[361807586,1747822604547,-889.32890854,0.00042912,30]
[361807587,1747822604570,-1000.0,0.00042912,30]
[361807588,1747822604593,-1057.47876635,0.00042912,30]
[361807589,1747822604618,-524.67325033,0.00042912,30]
[361807590,1747822604643,-2035.09210585,0.00042912,30]
[361807591,1747822604668,-750.46337557,0.00042912,30]
[361807592,1747822604693,-306.41776797,0.00042912,30]
[361807593,1747822604717,-241.22907431,0.00042912,30]
[361807594,1747822604741,-500.0,0.00042912,30]
[361807595,1747822604766,-871.10600555,0.00042912,30]
[361807596,1747822604791,-879.4375193,0.00042912,30]
[361807597,1747822604815,-947.27795933,0.00042912,30]
[361807598,1747822604839,-212.02045532,0.00042912,30]
[361807599,1747822604863,-978.62274741,0.00042912,30]
[361807600,1747822604886,-1030.27260495,0.00042912,30]
[361807601,1747822604911,-357.68331303,0.00042912,30]
[361807602,1747822604934,-662.55261252,0.00042912,30]
[361807603,1747822604960,-213.91209371,0.00042912,30]
[361807604,1747822604984,-729.30244098,0.00042912,30]
[361807605,1747822605008,-1030.111038,0.00042912,30]
[361807606,1747822605039,-778.50882555,0.00042912,30]
[361807607,1747822605067,-967.61562187,0.00042912,30]
[361807608,1747822605092,-833.51028611,0.00042912,30]
[361807609,1747822605119,-697.06133052,0.00042912,30]
[361807610,1747822605144,-1114.28027365,0.00042912,30]
[361807611,1747822605667,-900.16944249,0.00042912,30]
[361807612,1747822605695,-2092.13502903,0.00042912,30]
[361807613,1747822605722,-429.82945159,0.00042912,30]
[361807614,1747822605749,-1442.42059725,0.00042912,30]
[361807615,1747822605776,-1349.20747231,0.00042912,30]
[361807616,1747822605808,-450.26419457,0.00042912,30]
[361807617,1747822605836,-508.27435365,0.00042912,30]
[361807618,1747822605864,-661.34292261,0.00042912,30]
[361807619,1747822605891,-2029.23761049,0.00042912,30]
[361807620,1747822605917,-1790.55169279,0.00042912,30]
[361807621,1747822605944,-207.64517512,0.00042912,30]
[361807622,1747822605970,-1109.10541045,0.00042912,30]
[361807623,1747822605996,-391.59290354,0.00042912,30]
[361807624,1747822606021,-367.63339156,0.00042912,30]
[361807625,1747822606046,-1489.54933153,0.00042912,30]
[361807626,1747822606076,-324.49385827,0.00042912,30]
[361807627,1747822606101,-2068.55105309,0.00042912,30]
[361807628,1747822606126,-434.67563269,0.00042912,30]
[361807629,1747822606153,-1008.49087385,0.00042912,30]
[361807630,1747822606178,-228.7807677,0.00042912,30]
[361807631,1747822606205,-65675.77578672,0.00042912,30]
[361807632,1747822606231,-6842625.53959356,0.00042912,30]
[361807641,1747822843473,150.0,0.00013,5]
[361807642,1747822995562,-1087287.99599098,0.00042908,30]
[361807643,1747822995588,-1000.0,0.00042908,30]
[361807644,1747822995613,-1000.0,0.00042908,30]
[361807645,1747822995637,-1000.0,0.00042908,30]
[361807646,1747822995662,-1000.0,0.00042908,30]
[361807647,1747822995687,-1000.0,0.00042908,30]
[361807648,1747822995713,-1000.0,0.00042908,30]
[361807649,1747822995739,-1000.0,0.00042908,30]
[361807650,1747822995765,-1000.0,0.00042908,30]
[361807651,1747822995789,-1000.0,0.00042908,30]
[361807652,1747822995817,-1000.0,0.00042908,30]
[361807653,1747822995843,-12148.37968256,0.00042908,30]
[361807654,1747822995870,-50000.0,0.00042908,31]
[361807655,1747822995897,-50000.0,0.00042908,32]
[361807656,1747822995923,-50000.0,0.00042908,33]
[361807657,1747822995950,-50000.0,0.00042908,34]
[361807658,1747822995978,-50000.0,0.00042908,35]
[361807659,1747822996006,-50000.0,0.00042908,36]
[361807660,1747822996033,-50000.0,0.00042908,37]
[361807661,1747822996061,-50000.0,0.00042908,38]
[361807662,1747822996087,-50000.0,0.00042908,39]
[361807663,1747822996112,-10000.0,0.00042908,30]
[361807664,1747822996137,-158912.87577012,0.00042908,30]
[361807665,1747822996161,-531.31776595,0.00042908,30]
[361807666,1747822996187,-274.2822437,0.00042908,31]
[361807667,1747822996214,-3146.7945086,0.00042908,30]
[361807668,1747822996238,-14578.67776198,0.00042908,45]
[361807669,1747822996264,-4000.0,0.00042908,30]
[361807670,1747822996290,-5000.0,0.00042908,36]
[361807671,1747822996314,-100571.80177467,0.00042908,30]
[361807672,1747822996338,-10735.26177144,0.00042908,30]
[361807673,1747822996362,-151.1,0.00042908,30]
[361807674,1747822996387,-266.77760185,0.00042908,30]
[361807675,1747822996412,-1000.0,0.00042908,30]
[361807676,1747822996436,-1000.0,0.00042908,30]
[361807677,1747822996460,-1000.0,0.00042908,30]
[361807678,1747822996484,-1000.0,0.00042908,30]
[361807679,1747822996508,-1000.0,0.00042908,30]
[361807680,1747822996546,-34535.689085,0.00042908,30]
[361807681,1747822996573,-2548.77770039,0.00042908,30]
[361807682,1747822996599,-30181.05985633,0.00042908,30]
[361807683,1747822996625,-2496.03583075,0.00042908,30]
[361807684,1747822996651,-5000.0,0.00042908,30]
[361807685,1747822996677,-5000.0,0.00042908,37]
[361807686,1747822996702,-516.22227974,0.00042908,30]
[361807687,1747822996728,-1000.0,0.00042908,30]
[361807688,1747822996753,-1000.0,0.00042908,30]
[361807689,1747822996777,-342.0,0.00042908,120]
[361807690,1747822996802,-1000.0,0.00042908,30]
[361807691,1747822996827,-152.0,0.00042908,120]
[361807692,1747822996853,-364.33052216,0.00042908,60]
[361807693,1747822997156,-3830.44912295,0.00042908,34]
[361807694,1747822997184,-362.52243138,0.00042908,120]
[361807695,1747822997211,-2216.37569932,0.00042908,90]
[361807696,1747822997237,-3332.81165111,0.00042908,120]
[361807697,1747822997262,-971.34666349,0.00042908,91]
[361807698,1747822997289,-2860.46872999,0.00042908,120]
[361807699,1747822997318,-2788.72051392,0.00042908,120]
[361807700,1747822997343,-759.98705209,0.00042908,120]
[361807701,1747822997373,-758.94673878,0.00042908,120]
[361807702,1747822997408,-2408.96157138,0.00042908,120]
[361807703,1747822997436,-392.17633951,0.00042908,120]
[361807704,1747822997462,-490.84605721,0.00042908,120]
[361807705,1747822997486,-318.9952041,0.00042908,120]
[361807706,1747822997511,-861.48948795,0.00042908,120]
[361807707,1747822997537,-9336.1812263,0.00042908,120]
[361807708,1747822997564,-1569.74680864,0.00042908,90]
[361807709,1747822997592,-166.67439561,0.00042908,120]
[361807710,1747822997618,-900.34019378,0.00042908,120]
[361807711,1747822997646,-226.01875287,0.00042908,120]
[361807712,1747822997671,-1547.23329016,0.00042908,120]
[361807713,1747822997697,-740.62766203,0.00042908,120]
[361807714,1747822997722,-1455.57645077,0.00042908,120]
[361807715,1747822997749,-500.0,0.00042908,120]
[361807716,1747822997776,-500.0,0.00042908,120]
[361807717,1747822997803,-500.0,0.00042908,120]
[361807718,1747822997830,-319.66125883,0.00042908,120]
[361807719,1747822997856,-733.10330597,0.00042908,120]
[361807720,1747822997882,-295.2271822,0.00042908,120]
[361807721,1747822997912,-2561.84491398,0.00042908,120]
[361807722,1747822997940,-626.59487056,0.00042908,120]
[361807723,1747822997965,-472.60906309,0.00042908,120]
[361807724,1747822997992,-1550.25835082,0.00042908,120]
[361807725,1747822998017,-3227.80558456,0.00042908,120]
[361807726,1747822998041,-1230.89039331,0.00042908,120]
[361807727,1747822998066,-187.23998438,0.00042908,120]
[361807728,1747822998091,-487.56297017,0.00042908,120]
[361807729,1747822998116,-315.72568525,0.00042908,30]
[361807730,1747822998147,-269.75351586,0.00042908,120]
[361807731,1747822998173,-756.27001098,0.00042908,120]
[361807732,1747822998198,-567.79548088,0.00042908,120]
[361807733,1747822998231,-2379.43151907,0.00042908,120]
[361807734,1747822998270,-1011.22441756,0.00042908,120]
[361807735,1747822998296,-1225.51057311,0.00042908,120]
[361807736,1747822998323,-2115.3690005,0.00042908,120]
[361807737,1747822998348,-980.87595553,0.00042908,120]
[361807738,1747822998375,-219.74410198,0.00042908,120]
[361807739,1747822998401,-973.56262813,0.00042908,120]
[361807740,1747822998440,-648.0112233,0.00042908,60]
[361807741,1747822998469,-1068.93570514,0.00042908,120]
[361807742,1747822998495,-423.03414022,0.00042908,120]
[361807743,1747822998522,-1895.93288416,0.00042908,120]
[361807744,1747822998549,-352.97285368,0.00042908,120]
[361807745,1747822998576,-173.19971331,0.00042908,120]
[361807746,1747822998602,-691.54559218,0.00042908,120]
[361807747,1747822998629,-756.0,0.00042908,120]
[361807748,1747822998656,-3395.0784961,0.00042908,120]
[361807749,1747822998683,-2670.45995263,0.00042908,120]
[361807750,1747822998710,-1132.14828088,0.00042908,120]
[361807751,1747822998738,-610.55395688,0.00042908,120]
[361807752,1747822998765,-486.14280139,0.00042908,120]
[361807753,1747822998793,-280.0931962,0.00042908,120]
[361807754,1747822998819,-448.44594694,0.00042908,120]
[361807755,1747822998847,-2877.56738423,0.00042908,120]
[361807756,1747822998875,-160.73861251,0.00042908,120]
[361807757,1747822998901,-281.8218824,0.00042908,30]
[361807758,1747822998929,-183.16376177,0.00042908,120]
[361807759,1747822998956,-333.6555241,0.00042908,120]
[361807760,1747822998983,-170.23883238,0.00042908,120]
[361807761,1747822999012,-444.28614394,0.00042908,60]
[361807762,1747822999041,-1576.83431957,0.00042908,120]
[361807763,1747822999069,-3005.88835736,0.00042908,120]
[361807764,1747822999096,-2200.22807829,0.00042908,120]
[361807765,1747822999123,-513759.84353975,0.00042908,60]